bitfinex/quotes_BTCUSD_20250718
["timestamp","ask_amount","ask_price","bid_price","bid_amount"]
[1752816797434,0.64030532,120620.0,120610.0,0.10812319]
[1752816797638,0.72606494,120620.0,120610.0,0.10812319]
[1752816797849,0.64030532,120620.0,120610.0,0.10812319]
[1752816798046,0.63201517,120620.0,120610.0,0.09983215]
[1752816798265,0.64701517,120620.0,120610.0,0.09983215]
[1752816798996,0.63872481,120620.0,120610.0,0.09154104]
[1752816799290,0.18240588,120610.0,120600.0,0.18233747]
[1752816799508,0.63217762,120610.0,120600.0,0.32207219]
[1752816799714,0.158193,120610.0,120600.0,0.33865538]
[1752816799949,0.45806272,120610.0,120600.0,0.34079538]
[1752816800153,0.45806272,120610.0,120600.0,0.35659538]
[1752816800363,0.45806265,120610.0,120600.0,0.35659538]
[1752816800511,0.45806265,120610.0,120600.0,0.35759538]
[1752816800947,0.46635376,120610.0,120600.0,0.35759538]
[1752816801146,0.44977161,120610.0,120600.0,0.35759538]
[1752816801353,0.14990189,120610.0,120600.0,0.35759538]
[1752816801549,0.44977161,120610.0,120600.0,0.35759538]
[1752816801774,0.45806265,120610.0,120600.0,0.36169538]
[1752816801975,0.46635376,120610.0,120600.0,0.36169538]
[1752816802178,0.45806265,120610.0,120600.0,0.36169538]
[1752816803198,0.45806265,120610.0,120600.0,0.35859538]
[1752816803626,0.44977161,120610.0,120600.0,0.35859538]
[1752816803955,0.43318972,120610.0,120600.0,0.35859538]
[1752816805023,0.44148028,120610.0,120600.0,0.36169538]
[1752816807007,0.44148035,120610.0,120600.0,0.36169538]
[1752816807193,0.44977105,120610.0,120600.0,0.36169538]
[1752816807428,0.44977105,120610.0,120600.0,0.35859538]
[1752816807615,0.45806189,120610.0,120600.0,0.32407253]
[1752816807874,0.48471287,120610.0,120600.0,0.32403253]
[1752816808082,0.650537,120610.0,120600.0,0.29915747]
[1752816808292,0.49300446,120610.0,120600.0,0.32403253]
[1752816808505,0.48471328,120610.0,120600.0,0.32403253]
[1752816808686,0.49300439,120610.0,120600.0,0.33232399]
[1752816808918,0.65882859,120610.0,120600.0,0.33232399]
[1752816809097,0.68829083,120610.0,120600.0,0.33232399]
[1752816809297,0.67309083,120610.0,120600.0,0.32403253]
[1752816809665,0.67309083,120610.0,120600.0,0.33232399]
[1752816810071,0.50406711,120610.0,120600.0,0.33232399]
[1752816810268,0.48748482,120610.0,120600.0,0.34061538]
[1752816810543,0.34787336,120610.0,120600.0,0.22973538]
[1752816810741,0.47919336,120610.0,120600.0,0.36105538]
[1752816810947,0.1581521,120610.0,120600.0,0.36105538]
[1752816811155,0.4957749,120610.0,120600.0,0.36105538]
[1752816811462,0.51235692,120610.0,120600.0,0.34061538]
[1752816812196,0.50406581,120610.0,120600.0,0.34061538]
[1752816812957,0.51235685,120610.0,120600.0,0.34061538]
[1752816813170,0.51235788,120610.0,120600.0,0.34061538]
[1752816813391,0.6813816,120610.0,120600.0,0.33232399]
[1752816813598,0.51555788,120610.0,120600.0,0.34061538]
[1752816813837,0.5072667,120610.0,120600.0,0.34061538]
[1752816814056,0.15815279,120610.0,120600.0,0.34061538]
[1752816814205,0.49577559,120610.0,120600.0,0.34061538]
[1752816814630,0.48748455,120610.0,120600.0,0.34061538]
[1752816814878,0.49577553,120610.0,120600.0,0.34275538]
[1752816815207,0.51235768,120610.0,120600.0,0.34275538]
[1752816815740,0.66989056,120610.0,120600.0,0.33232399]
[1752816815950,0.66906145,120610.0,120600.0,0.33232399]
[1752816816648,0.36362682,120610.0,120600.0,0.33232392]
[1752816816805,0.387418,120610.0,120600.0,0.33232392]
[1752816817007,0.37083571,120610.0,120600.0,0.33232392]
[1752816817207,0.53774172,120610.0,120600.0,0.32403253]
[1752816817408,0.36362682,120610.0,120600.0,0.33232392]
[1752816817758,0.96409955,120610.0,120600.0,0.002]
[1752816817903,0.89368236,120610.0,120600.0,0.002]
[1752816818081,1.02500236,120610.0,120600.0,0.002]
[1752816818534,1.02500236,120610.0,120600.0,0.001]
[1752816818878,0.18242073,120600.0,120590.0,0.18258405]
[1752816819088,1.23609726,120600.0,120590.0,0.00014944]
[1752816819287,1.35755487,120600.0,120590.0,0.00014944]
[1752816819461,1.22623487,120600.0,120590.0,0.00014944]
[1752816819663,1.35755487,120600.0,120590.0,0.00014944]
[1752816819867,0.68230927,120600.0,120590.0,0.00014944]
[1752816820088,1.34135487,120600.0,120590.0,0.00114944]
[1752816820314,1.22623487,120600.0,120590.0,0.00114944]
[1752816820486,1.35755487,120600.0,120590.0,0.00114944]
[1752816820915,1.35755487,120600.0,120570.0,0.17411986]
[1752816821114,1.35755487,120600.0,120570.0,0.16590864]
[1752816821115,0.4982119,120580.0,120570.0,0.16590864]
[1752816821295,0.5001719,120580.0,120570.0,0.17420257]
[1752816821502,0.495079,120580.0,120570.0,0.17420257]
[1752816821906,0.495079,120580.0,120570.0,8.264e-05]
[1752816822101,0.495079,120580.0,120570.0,0.16596138]
[1752816822305,0.19481809,120580.0,120570.0,0.17525531]
[1752816822598,0.19481809,120580.0,120570.0,0.1845491]
[1752816823048,0.19481809,120580.0,120570.0,0.1835491]
[1752816823582,0.19481809,120580.0,120570.0,0.17525531]
[1752816823964,0.19481809,120580.0,120570.0,0.00108264]
[1752816824344,0.495079,120580.0,120570.0,8.264e-05]
[1752816824546,0.496079,120580.0,120570.0,8.264e-05]
[1752816824746,0.19581809,120580.0,120570.0,8.264e-05]
[1752816824948,0.492879,120580.0,120570.0,8.264e-05]
[1752816825162,0.475419,120580.0,120570.0,0.20270138]
[1752816825357,0.001,120580.0,120570.0,0.35409401]
[1752816825564,0.001,120580.0,120570.0,0.48541401]
[1752816825904,0.001,120580.0,120570.0,0.35409401]
[1752816826034,0.001,120580.0,120570.0,0.44441263]
[1752816826236,0.001,120580.0,120570.0,0.31309263]
[1752816826477,0.32613941,120580.0,120570.0,0.22758242]
[1752816826816,0.33443259,120580.0,120570.0,0.36719587]
[1752816827031,0.50029757,120580.0,120570.0,0.34280242]
[1752816827235,0.29724366,120580.0,120570.0,0.19484256]
[1752816827353,0.50225757,120580.0,120570.0,0.19698256]
[1752816827553,0.50125757,120580.0,120570.0,0.20437615]
[1752816827814,0.48467211,120580.0,120570.0,8.264e-05]
[1752816827959,0.47637907,120580.0,120570.0,0.01437657]
[1752816828165,0.60773907,120580.0,120570.0,0.17525531]
[1752816828359,0.62640907,120580.0,120570.0,0.00108264]
[1752816828612,0.49504907,120580.0,120570.0,0.00208264]
[1752816828812,0.57427522,120580.0,120570.0,0.00208264]
[1752816828963,0.64186907,120580.0,120570.0,0.00208264]
[1752816829164,0.51054907,120580.0,120570.0,0.00208264]
[1752816829521,0.64186907,120580.0,120570.0,0.00208264]
[1752816829677,0.62636907,120580.0,120570.0,0.00208264]
[1752816829868,0.62636907,120580.0,120570.0,0.00108264]
[1752816830077,0.64256907,120580.0,120570.0,0.00108264]
[1752816830730,0.64256907,120580.0,120570.0,8.264e-05]
[1752816830943,0.51124907,120580.0,120570.0,8.264e-05]
[1752816831111,0.49604907,120580.0,120570.0,0.17425524]
[1752816831329,0.31151367,120580.0,120570.0,0.1874389]
[1752816831528,0.01758573,120580.0,120570.0,0.26525378]
[1752816831730,0.02587877,120580.0,120570.0,0.36708587]
[1752816831933,0.32613961,120580.0,120570.0,0.23572587]
[1752816832132,0.31784657,120580.0,120570.0,0.36708587]
[1752816832873,0.32613961,120580.0,120570.0,0.36708587]
[1752816833072,0.01758566,120580.0,120570.0,0.36708587]
[1752816833277,0.30955367,120580.0,120570.0,0.36708587]
[1752816833478,0.31784657,120580.0,120570.0,0.36708587]
[1752816834025,0.001,120580.0,120570.0,0.36724587]
[1752816834438,0.001,120580.0,120570.0,0.37537937]
[1752816834655,0.001,120580.0,120570.0,0.50693937]
[1752816835069,0.001,120580.0,120570.0,0.37537937]
[1752816835481,0.001,120580.0,120570.0,0.50689937]
[1752816835626,0.001,120580.0,120570.0,0.32123615]
[1752816835812,0.00017068,120580.0,120570.0,0.45283615]
[1752816836794,0.00017068,120580.0,120570.0,0.45483615]
[1752816837402,0.00017068,120580.0,120570.0,0.45479615]
[1752816837609,0.316845,120590.0,120580.0,0.20674389]
[1752816837837,0.01658409,120590.0,120580.0,0.29421417]
[1752816838053,0.30026091,120590.0,120580.0,0.29714417]
[1752816838268,0.30855292,120590.0,120580.0,0.29714417]
[1752816838398,0.31684506,120590.0,120580.0,0.29714417]
[1752816838850,0.30855292,120590.0,120580.0,0.29714417]
[1752816839058,0.30855292,120590.0,120580.0,0.29814417]
[1752816839478,0.316845,120590.0,120580.0,0.29814417]
[1752816839858,0.316845,120590.0,120580.0,0.29914417]
[1752816840390,0.316845,120590.0,120580.0,0.43082417]
[1752816840803,0.32513721,120590.0,120580.0,0.43082417]
[1752816841039,0.316845,120590.0,120580.0,0.43082417]
[1752816841247,0.32513721,120590.0,120580.0,0.43082417]
[1752816841451,0.32513714,120590.0,120580.0,0.43082417]
[1752816841626,0.33342935,120590.0,120580.0,0.43082417]
[1752816842044,0.00829201,120590.0,120580.0,0.43082417]
[1752816842247,0.19071284,120600.0,120590.0,0.17414365]
[1752816842442,0.20867284,120600.0,120590.0,0.182436]
[1752816842617,0.50064216,120600.0,120590.0,0.182436]
[1752816842832,0.01658429,120590.0,120580.0,0.18445071]
[1752816842996,0.316845,120590.0,120580.0,0.22843389]
[1752816843200,0.32513721,120590.0,120580.0,0.22843389]
[1752816843423,0.32513721,120590.0,120580.0,0.34437389]
[1752816843980,0.32513721,120590.0,120580.0,0.34437396]
[1752816844224,0.49098844,120590.0,120580.0,0.34437396]
[1752816844459,0.49928086,120590.0,120580.0,0.34337396]
[1752816844698,0.49314885,120590.0,120580.0,0.33508113]
[1752816845131,0.49314885,120590.0,120580.0,0.33608113]
[1752816845437,0.50144134,120590.0,120580.0,0.35366686]
[1752816845649,0.49314926,120590.0,120580.0,0.1864112]
[1752816845869,0.48485705,120590.0,120580.0,0.3181312]
[1752816846337,0.48485705,120590.0,120580.0,0.3161712]
[1752816846583,0.48485705,120590.0,120580.0,0.32446417]
[1752816846777,0.48485705,120590.0,120580.0,0.3430099]
[1752816847024,0.48485705,120590.0,120580.0,0.3459399]
[1752816847222,0.01874491,120590.0,120580.0,0.34593948]
[1752816847467,0.01874463,120590.0,120580.0,0.36123948]
[1752816847650,0.01874463,120590.0,120580.0,0.41555957]
[1752816847882,0.49314926,120590.0,120580.0,0.41555957]
[1752816848048,0.50144182,120590.0,120580.0,0.36123948]
[1752816848251,0.50144182,120590.0,120580.0,0.35294672]
[1752816849039,0.31900554,120590.0,120580.0,0.36123948]
[1752816849396,0.32729755,120590.0,120580.0,0.36123948]
[1752816849752,0.57168899,120600.0,120590.0,0.18243586]
[1752816849961,0.82421232,120600.0,120590.0,0.19902008]
[1752816850182,0.99004979,120600.0,120590.0,0.182436]
[1752816850441,0.98992979,120600.0,120590.0,0.182436]
[1752816850656,1.00522979,120600.0,120590.0,0.17414365]
[1752816850882,1.00522979,120600.0,120590.0,0.18243593]
[1752816851079,1.00522979,120600.0,120590.0,0.17414365]
[1752816851237,1.00522979,120600.0,120590.0,0.17414372]
[1752816852176,1.00522979,120600.0,120590.0,0.18243614]
[1752816852369,1.00522979,120600.0,120590.0,0.19072849]
[1752816852562,0.9969382,120600.0,120590.0,0.18243614]
[1752816852766,0.9886464,120600.0,120590.0,0.17414372]
[1752816853467,0.9886464,120600.0,120590.0,0.18243614]
[1752816853795,0.68838549,120600.0,120590.0,0.18243614]
[1752816853969,0.98163806,120600.0,120590.0,0.19072849]
[1752816854110,0.99693806,120600.0,120590.0,0.18243614]
[1752816854298,0.99693806,120600.0,120590.0,0.19072849]
[1752816854764,0.83110018,120600.0,120590.0,0.19902077]
[1752816854925,0.99822125,120600.0,120590.0,0.19902077]
[1752816855134,1.01352125,120600.0,120590.0,0.19902077]
[1752816855355,0.99822125,120600.0,120590.0,0.20731298]
[1752816855936,0.69713116,120600.0,120590.0,0.20731298]
[1752816856151,0.99739207,120600.0,120590.0,0.20731298]
[1752816856365,0.99739207,120600.0,120590.0,0.21220298]
[1752816856572,0.83155453,120600.0,120590.0,0.21220257]
[1752816856722,0.997392,120600.0,120590.0,0.20391049]
[1752816856922,0.997392,120600.0,120590.0,0.19902049]
[1752816857781,0.997392,120600.0,120590.0,0.20731263]
[1752816857988,0.997392,120600.0,120590.0,0.19902049]
[1752816858213,0.98910054,120600.0,120590.0,0.19072828]
[1752816858468,1.00520054,120600.0,120590.0,0.182436]
[1752816858679,0.99690888,120600.0,120590.0,0.182436]
[1752816859314,0.69664797,120600.0,120590.0,0.19072828]
[1752816859470,0.99690888,120600.0,120590.0,0.19072828]
[1752816859703,0.99690888,120600.0,120590.0,0.19902042]
[1752816859901,0.69664797,120600.0,120590.0,0.19902042]
[1752816860112,0.97864888,120600.0,120590.0,0.23313042]
[1752816860470,0.98909075,120600.0,120590.0,0.19072828]
[1752816860655,0.98079902,120600.0,120590.0,0.182436]
[1752816860886,0.98059902,120600.0,120590.0,0.182436]
[1752816861113,0.99649902,120600.0,120590.0,0.182436]
[1752816861328,0.98059902,120600.0,120590.0,0.19072828]
[1752816861553,0.68344127,120600.0,120590.0,0.19902036]
[1752816861797,0.98059874,120600.0,120590.0,0.19283828]
[1752816861994,0.98059874,120600.0,120590.0,0.19072828]
[1752816863150,0.68033783,120600.0,120590.0,0.25133982]
[1752816863378,0.98059874,120600.0,120590.0,0.19072828]
[1752816863599,0.97230715,120600.0,120590.0,0.182436]
[1752816863814,0.97230715,120600.0,120590.0,0.17414365]
[1752816865045,0.98740715,120600.0,120590.0,0.17414365]
[1752816866005,0.99051715,120600.0,120590.0,0.17414365]
[1752816866432,0.69025624,120600.0,120590.0,0.17414365]
[1752816866943,0.98740715,120600.0,120590.0,0.17414365]
[1752816868104,0.68714624,120600.0,120590.0,0.17414365]
[1752816868332,0.97230715,120600.0,120590.0,0.23392613]
[1752816868543,0.97230715,120600.0,120590.0,0.19283821]
[1752816868747,0.97230715,120600.0,120590.0,0.21095821]
[1752816869244,0.97230715,120600.0,120590.0,0.202666]
[1752816869379,0.97230715,120600.0,120590.0,0.187666]
[1752816869589,0.97230715,120600.0,120590.0,0.184546]
[1752816869966,0.67204624,120600.0,120590.0,0.19283828]
[1752816870167,0.97230715,120600.0,120590.0,0.19283828]
[1752816870414,0.97230715,120600.0,120590.0,0.20113049]
[1752816870870,0.97230715,120600.0,120590.0,0.20425049]
[1752816871073,0.97230715,120600.0,120590.0,0.21925049]
[1752816871296,0.97230715,120600.0,120590.0,0.202666]
[1752816871701,0.84098715,120600.0,120590.0,0.202666]
[1752816871858,0.97230715,120600.0,120590.0,0.19125379]
[1752816872054,0.97230715,120600.0,120590.0,0.18243628]
[1752816872591,0.97230715,120600.0,120590.0,0.1907287]
[1752816872797,1.00691715,120600.0,120590.0,0.17414379]
[1752816873090,0.00829235,120590.0,120580.0,0.18245044]
[1752816873307,0.44202326,120590.0,120580.0,0.31377044]
[1752816873510,0.44202326,120590.0,120580.0,0.18245044]
[1752816873722,0.45031547,120590.0,120580.0,0.19895044]
[1752816873939,0.45860748,120590.0,120580.0,0.19895044]
[1752816874171,0.45860748,120590.0,120580.0,0.20106044]
[1752816874351,0.45860748,120590.0,120580.0,0.20206044]
[1752816874482,0.4668999,120590.0,120580.0,0.20206044]
[1752816874680,0.4668999,120590.0,120580.0,0.20618044]
[1752816875417,0.4668999,120590.0,120580.0,0.21447361]
[1752816875418,0.47519184,120590.0,120580.0,0.21447361]
[1752816875854,0.47436259,120590.0,120580.0,0.21447361]
[1752816876153,0.17410168,120590.0,120580.0,0.21447361]
[1752816876339,0.47436259,120590.0,120580.0,0.21447361]
[1752816877000,0.47436259,120590.0,120580.0,0.21447416]
[1752816877192,0.47436259,120590.0,120580.0,0.22276699]
[1752816877332,0.47436259,120590.0,120580.0,0.21447416]
[1752816877533,0.63192188,120590.0,120580.0,0.21447416]
[1752816877757,0.6236298,120590.0,120580.0,0.20618126]
[1752816878309,0.6236298,120590.0,120580.0,0.20618133]
[1752816878715,0.61533759,120590.0,120580.0,0.19788822]
[1752816879081,0.61533759,120590.0,120580.0,0.2061814]
[1752816879835,0.61533759,120590.0,120580.0,0.21447444]
[1752816880717,0.61533759,120590.0,120580.0,0.19274444]
[1752816881126,0.61533759,120590.0,120580.0,0.21623741]
[1752816881305,0.61533759,120590.0,120580.0,0.21834741]
[1752816881436,0.61533759,120590.0,120580.0,0.22146741]
[1752816881652,0.60704531,120590.0,120580.0,0.19658822]
[1752816881857,0.59875289,120590.0,120580.0,0.02243]
[1752816882062,0.59958214,120590.0,120580.0,0.19346816]
[1752816883079,0.29932123,120590.0,120580.0,0.19346816]
[1752816883352,0.59958214,120590.0,120580.0,0.17615816]
[1752816883568,0.59958214,120590.0,120580.0,0.17615822]
[1752816883800,0.59958214,120590.0,120580.0,0.18445133]
[1752816884020,0.44202292,120590.0,120580.0,0.2079443]
[1752816884233,0.45031534,120590.0,120580.0,0.22453003]
[1752816884432,0.46690011,120590.0,120580.0,0.2214672]
[1752816884636,0.1666392,120590.0,120580.0,0.2214672]
[1752816884839,0.45031513,120590.0,120580.0,0.22975955]
[1752816884956,0.45860728,120590.0,120580.0,0.28320441]
[1752816885172,0.45860728,120590.0,120580.0,0.22975955]
[1752816885366,0.46689963,120590.0,120580.0,0.22975955]
[1752816885570,0.17493114,120590.0,120580.0,0.22975955]
[1752816885812,0.47519205,120590.0,120580.0,0.22975955]
[1752816886019,0.16663913,120590.0,120580.0,0.22975955]
[1752816886220,0.45860762,120590.0,120580.0,0.28403364]
[1752816886604,0.46690004,120590.0,120580.0,0.28403364]
[1752816886815,0.45860762,120590.0,120580.0,0.22975955]
[1752816887094,0.47519253,120590.0,120580.0,0.22975955]
[1752816887480,0.64104376,120590.0,120580.0,0.22975955]
[1752816887684,0.47519253,120590.0,120580.0,0.22975955]
[1752816887907,0.14176208,120590.0,120580.0,0.22975955]
[1752816888113,0.14176214,120590.0,120580.0,0.28403364]
[1752816888257,0.14176194,120590.0,120580.0,0.30043364]
[1752816888469,0.15005402,120590.0,120580.0,0.24615955]
[1752816888696,0.45031493,120590.0,120580.0,0.24615955]
[1752816889012,0.14176194,120590.0,120580.0,0.24615955]
[1752816889148,0.13961194,120590.0,120580.0,0.24615955]
[1752816889547,0.14790408,120590.0,120580.0,0.24615955]
[1752816889749,0.14790402,120590.0,120580.0,0.24615955]
[1752816890042,0.681291,120600.0,120590.0,0.20592808]
[1752816890269,0.9888502,120600.0,120590.0,0.202876]
[1752816890951,0.99509959,120600.0,120590.0,0.17938372]
[1752816891088,0.99509959,120600.0,120590.0,0.18448614]
[1752816891296,0.98680793,120600.0,120590.0,0.18243614]
[1752816892428,0.68654702,120600.0,120590.0,0.18243614]
[1752816892619,0.68654702,120600.0,120590.0,0.19072849]
[1752816892820,0.98680793,120600.0,120590.0,0.19072849]
[1752816893054,0.01658422,120590.0,120580.0,0.40290452]
[1752816893386,0.31895513,120590.0,120580.0,0.35061043]
[1752816893531,0.32724741,120590.0,120580.0,0.35061043]
[1752816893726,0.32513741,120590.0,120580.0,0.35061043]
[1752816894177,0.32513714,120590.0,120580.0,0.35061043]
[1752816894382,0.33342942,120590.0,120580.0,0.35161043]
[1752816895411,0.34172184,120590.0,120580.0,0.35161043]
[1752816895707,0.34172184,120590.0,120580.0,0.22029043]
[1752816895982,0.50139147,120590.0,120580.0,0.19659802]
[1752816896113,0.33554024,120590.0,120580.0,0.35275679]
[1752816896313,0.50139147,120590.0,120580.0,0.35275679]
[1752816896683,0.33554024,120590.0,120580.0,0.35275679]
[1752816896809,0.63267189,120590.0,120580.0,0.21318403]
[1752816897030,0.63267189,120590.0,120580.0,0.34446403]
[1752816897893,0.4585281,120590.0,120580.0,0.34446403]
[1752816898094,0.4585281,120590.0,120580.0,0.35275679]
[1752816898501,0.62437933,120590.0,120580.0,0.34446403]
[1752816898766,0.63267189,120590.0,120580.0,0.33922403]
[1752816898938,0.63267189,120590.0,120580.0,0.32402403]
[1752816899146,0.61608719,120590.0,120580.0,0.3157312]
[1752816899293,0.6077947,120590.0,120580.0,0.3157312]
[1752816899950,0.6077947,120590.0,120580.0,0.32402417]
[1752816900189,0.6077947,120590.0,120580.0,0.3147312]
[1752816900355,0.61608705,120590.0,120580.0,0.33031693]
[1752816900558,0.4502354,120590.0,120580.0,0.35410969]
[1752816900912,0.6409641,120590.0,120580.0,0.35934969]
[1752816901114,0.67840686,120590.0,120580.0,0.35934969]
[1752816901964,0.67011472,120590.0,120580.0,0.35105693]
[1752816903094,0.67011472,120590.0,120580.0,0.3344712]
[1752816903296,0.66182237,120590.0,120580.0,0.3344712]
[1752816903646,0.65352995,120590.0,120580.0,0.3189712]
[1752816903854,0.65352995,120590.0,120580.0,0.3157812]
[1752816904009,0.65352995,120590.0,120580.0,0.32407417]
[1752816904210,0.65352995,120590.0,120580.0,0.33236707]
[1752816904419,0.65352995,120590.0,120580.0,0.3406599]
[1752816904984,0.67882999,120590.0,120580.0,0.3406599]
[1752816905408,0.67882999,120590.0,120580.0,0.32407417]
[1752816905714,0.34112632,120590.0,120580.0,0.32407417]
[1752816905923,0.67882999,120590.0,120580.0,0.3157812]
[1752816906157,0.67882999,120590.0,120580.0,0.32407417]
[1752816906356,0.67882999,120590.0,120580.0,0.33236707]
[1752816906555,0.67882999,120590.0,120580.0,0.34776707]
[1752816907360,0.67882999,120590.0,120580.0,0.3311812]
[1752816907572,0.67882999,120590.0,120580.0,0.33947417]
[1752816908125,0.67882999,120590.0,120580.0,0.34776707]
[1752816908526,0.67882999,120590.0,120580.0,0.33947417]
[1752816908974,0.67882999,120590.0,120580.0,0.14873]
[1752816909344,0.6856375,120590.0,120580.0,0.13128]
[1752816909563,0.51415816,120580.0,120570.0,0.01618264]
[1752816909775,0.98525183,120580.0,120570.0,8.264e-05]
[1752816910220,0.64754816,120580.0,120570.0,8.264e-05]
[1752816910379,0.98525183,120580.0,120570.0,8.264e-05]
[1752816911391,0.98525183,120580.0,120570.0,0.00108264]
[1752816911818,0.98525183,120580.0,120570.0,8.264e-05]
[1752816912199,0.64754816,120580.0,120570.0,8.264e-05]
[1752816912422,0.85397183,120580.0,120570.0,0.17425524]
[1752816912639,0.86226487,120580.0,120570.0,0.27494773]
[1752816912860,0.99139487,120580.0,120570.0,0.27494773]
[1752816913040,0.86844811,120580.0,120570.0,0.27494773]
[1752816913251,0.99968811,120580.0,120570.0,0.23577635]
[1752816913536,0.86844811,120580.0,120570.0,0.23577635]
[1752816913706,0.70258313,120580.0,120570.0,0.24406987]
[1752816913914,0.66198444,120580.0,120570.0,0.23577635]
[1752816914088,0.99968811,120580.0,120570.0,0.22748276]
[1752816914270,0.99350507,120580.0,120570.0,0.19449524]
[1752816914469,0.85397189,120580.0,120570.0,0.19130524]
[1752816914798,0.98521189,120580.0,120570.0,0.19130524]
[1752816915914,0.98438257,120580.0,120570.0,0.25946478]
[1752816916104,0.98438257,120580.0,120570.0,0.19449524]
[1752816916605,0.98438257,120580.0,120570.0,0.19130524]
[1752816916725,0.98438257,120580.0,120570.0,0.19959903]
[1752816916933,0.94691787,120580.0,120570.0,0.19959903]
[1752816917178,0.93862463,120580.0,120570.0,0.19130524]
[1752816919465,0.93862463,120580.0,120570.0,0.01713264]
[1752816919814,0.93862463,120580.0,120570.0,0.19130524]
[1752816919952,0.93862463,120580.0,120570.0,0.19444524]
[1752816920160,0.93862463,120580.0,120570.0,0.02027264]
[1752816921135,0.93862463,120580.0,120570.0,0.01713264]
[1752816921388,0.93862463,120580.0,120570.0,8.264e-05]
[1752816921728,0.63838566,120580.0,120570.0,8.264e-05]
[1752816921995,0.93862463,120580.0,120570.0,8.264e-05]
[1752816922476,0.93862463,120580.0,120570.0,0.01578264]
[1752816925023,0.93862463,120580.0,120570.0,8.264e-05]
[1752816926009,0.93862463,120580.0,120570.0,0.01608264]
[1752816926227,0.93862463,120580.0,120570.0,0.19225531]
[1752816926446,0.93862463,120580.0,120570.0,0.02122264]
[1752816926664,0.93862463,120580.0,120570.0,0.01808264]
[1752816927744,0.63838566,120580.0,120570.0,0.01808264]
[1752816927951,0.93862463,120580.0,120570.0,0.01808264]
[1752816928370,0.93862463,120580.0,120570.0,0.19225531]
[1752816928617,0.93862463,120580.0,120570.0,0.01808264]
[1752816929242,0.93862463,120580.0,120570.0,0.02637657]
[1752816929462,0.93862463,120580.0,120570.0,0.19225531]
[1752816929679,0.93862463,120580.0,120570.0,0.02122264]
[1752816929858,0.93862463,120580.0,120570.0,0.19539524]
[1752816930064,0.63838566,120580.0,120570.0,0.21198263]
[1752816930274,0.93862463,120580.0,120570.0,0.19539524]
[1752816930483,0.93862463,120580.0,120570.0,0.20368903]
[1752816930697,0.63838566,120580.0,120570.0,0.20368903]
[1752816930915,0.93862463,120580.0,120570.0,0.20368903]
[1752816932207,0.52373181,120580.0,120570.0,0.2809037]
[1752816932432,0.82397078,120580.0,120570.0,0.28919736]
[1752816932656,0.95517078,120580.0,120570.0,0.23587642]
[1752816933419,0.95517078,120580.0,120570.0,0.24417001]
[1752816934218,0.95517078,120580.0,120570.0,0.22857001]
[1752816935000,0.95517078,120580.0,120550.0,0.0004]
[1752816935001,0.18248126,120560.0,120550.0,0.0004]
[1752816935226,0.8012592,120560.0,120550.0,0.0004]
[1752816935487,0.52251181,120540.0,120530.0,0.0325]
[1752816935717,0.82485078,120540.0,120530.0,0.0004]
[1752816935920,0.97082118,120540.0,120530.0,0.0004]
[1752816936120,1.0595208,120540.0,120530.0,0.0004]
[1752816936361,0.97376118,120540.0,120530.0,0.0004]
[1752816936567,0.98830203,120540.0,120530.0,0.0004]
[1752816936995,0.98835183,120540.0,120530.0,0.0004]
[1752816937358,0.98935183,120540.0,120530.0,0.0004]
[1752816937932,0.3410498,120540.0,120530.0,0.20267379]
[1752816938324,0.3410498,120540.0,120530.0,0.29531875]
[1752816938496,0.0010498,120540.0,120530.0,0.38082903]
[1752816938629,0.30128877,120540.0,120530.0,0.20267379]
[1752816938846,0.62539616,120540.0,120530.0,0.20022682]
[1752816939043,0.62539616,120540.0,120530.0,0.19193034]
[1752816939254,0.82490058,120540.0,120530.0,0.0157]
[1752816939458,0.98858143,120540.0,120530.0,0.0004]
[1752816940085,0.70334246,120540.0,120530.0,0.0014]
[1752816940282,1.00358143,120540.0,120530.0,0.0014]
[1752816940488,1.00358143,120540.0,120530.0,0.0004]
[1752816941292,1.01267562,120540.0,120530.0,0.0004]
[1752816941714,1.09843524,120540.0,120530.0,0.0004]
[1752816943844,1.09943524,120540.0,120530.0,0.0004]
[1752816944046,1.18494552,120540.0,120530.0,0.0004]
[1752816944724,1.05374552,120540.0,120530.0,0.0004]
[1752816944931,0.65274693,120540.0,120530.0,0.0004]
[1752816945144,1.0812459,120540.0,120530.0,0.0004]
[1752816945349,1.0841859,120540.0,120530.0,0.0004]
[1752816945484,1.0994859,120540.0,120530.0,0.0004]
[1752816946101,0.79924693,120540.0,120530.0,0.0004]
[1752816946304,1.18524552,120540.0,120530.0,0.0004]
[1752816947510,1.05404552,120540.0,120530.0,0.0004]
[1752816947751,1.18524552,120540.0,120530.0,0.0004]
[1752816949588,1.14740828,120530.0,120520.0,0.0004]
[1752816949739,1.32376818,120530.0,120520.0,0.0004]
[1752816949945,1.45496818,120530.0,120520.0,0.0004]
[1752816950183,6.45496818,120530.0,120520.0,0.0004]
[1752816950567,1.14742274,120520.0,120510.0,0.0004]
[1752816950790,6.36922302,120520.0,120510.0,0.0004]
[1752816951038,1.45498264,120520.0,120510.0,0.0004]
[1752816951378,6.36922302,120520.0,120510.0,0.0004]
[1752816952893,6.37122302,120520.0,120510.0,0.0004]
[1752816953095,6.25656387,120520.0,120510.0,0.0004]
[1752816953427,6.37156387,120520.0,120510.0,0.0004]
[1752816953597,1.37156387,120520.0,120510.0,0.0004]
[1752816953803,6.45732349,120520.0,120510.0,0.0004]
[1752816955779,5.88029449,120520.0,120510.0,0.0004]
[1752816955985,6.39501281,120520.0,120510.0,0.0004]
[1752816956224,6.41091281,120520.0,120510.0,0.0004]
[1752816957034,0.83049822,120510.0,120500.0,0.0004]
[1752816957232,6.0522985,120510.0,120500.0,0.0004]
[1752816957445,1.15395812,120510.0,120500.0,0.0004]
[1752816958417,1.15395812,120510.0,120490.0,0.0004]
[1752816958418,0.17427371,120500.0,120490.0,0.0004]
[1752816958618,1.05271296,120500.0,120490.0,0.0004]
[1752816958742,0.83118353,120500.0,120490.0,0.02119]
[1752816958991,0.66214456,120500.0,120490.0,0.02119]
[1752816959196,0.96238353,120500.0,120490.0,0.02119]
[1752816959626,0.83118353,120500.0,120490.0,0.02133974]
[1752816959830,0.96238353,120500.0,120490.0,0.02133974]
[1752816960042,0.66214456,120500.0,120490.0,0.02133974]
[1752816960269,0.96238353,120500.0,120490.0,0.02133974]
[1752816960713,0.96025353,120500.0,120490.0,0.03743974]
[1752816961343,0.66001456,120500.0,120490.0,0.06197383]
[1752816961542,0.66001456,120500.0,120490.0,0.21172791]
[1752816961772,0.96025353,120500.0,120490.0,0.22002714]
[1752816961995,0.36489494,120500.0,120490.0,0.23662526]
[1752816962178,0.49605488,120500.0,120490.0,0.27775792]
[1752816962378,0.3565964,120500.0,120490.0,0.23662526]
[1752816962767,0.36489481,120500.0,120490.0,0.23662526]
[1752816962966,0.20682063,120520.0,120510.0,0.21365724]
[1752816963213,0.9782596,120520.0,120510.0,0.03309]
[1752816963536,0.64450335,120520.0,120510.0,0.03609]
[1752816963652,0.98450335,120520.0,120510.0,0.21034939]
[1752816963862,0.98450335,120520.0,120510.0,0.21864738]